Workbook

Sheet 公告稿
A1: 附件:资产清单 | I1: 基准日：2025年12月20日 单位：万元
A2: 序号 | B2: 所在地 | C2: 债务人 | D2: 债权合计 | E2: 本金余额 | F2: 利息余额 | G2: 代垫费用 | H2: 担保人 | I2: 抵（质）押物
A3: 1 | B3: 泉州 | C3: 石狮市佳龙石化纺纤有限公司 | D3: =SUM(E3:G3) -> 26,750.53 | E3: =20349-251.43 -> 20,097.57 | F3: 6,652.96 | G3: 0.00 | H3: 保证人：佳龙投资集团有限公司、北京建安特西维欧特种设备制造有限公司、付书全、付博佳 抵押人：石狮市佳龙石化纺纤有限公司 | I3: 抵押物：石狮市佳龙石化纺纤有限公司所有的位于福建省石狮市石湖港工业区（石狮港口大道2600号）厂区内的机器设备，最高额抵押担保金额为221280万元。
A4: 2 | B4: 泉州 | C4: 福建省晋江市陈埭新奇特鞋业有限公司 | D4: =SUM(E4:G4) -> 1,669.50 | E4: 979.11 | F4: 690.39 | G4: 0.00 | H4: 保证人：泉州安超鞋业有限公司、福建省晋江市陈埭爱尔美制鞋有限公司、安超（中国）有限公司、丁松概、丁松飘、丁松义、丁妈廷 抵押人：安超（中国）有限公司 | I4: 抵押物：安超（中国）有限公司所有的位于晋江市陈埭镇岸兜村工业房地产提供一般抵押，土地面积3026㎡，建筑面积8251.73㎡。
A5: 3 | B5: 泉州 | C5: 福建惠康食品有限公司 | D5: =SUM(E5:G5) -> 3,159.19 | E5: 1,000.00 | F5: 2,159.19 | G5: 0.00 | H5: 保证人：泉州新恒辉儿童用品有限公司、吴庆鸿、吴雪丽、高希宣、吴绳表 抵押人：福建惠康食品有限公司 | I5: 抵押物：福建惠康食品有限公司所有的位于罗山街道后林社区工业用地，土地面积2004㎡，地上存在无证建筑物，最高额抵押担保金额为168万元。
A6: 4 | B6: 漳州 | C6: 漳州傲农投资有限公司 | D6: =SUM(E6:G6) -> 7,469.53 | E6: =7877.15-485.9 -> 7,391.25 | F6: 77.41 | G6: 0.87 | H6: 保证人：吴有林、韦唯、厦门毅植生物科技有限公司 抵押人：韦唯 质押人：漳州傲农投资有限公司 | I6: 1、重整留债质押物：漳州傲农投资有限公司持有的福建傲农生物科技集团股份有限公司（证券代码：603363）11570000股股票； 2、抵债股票：福建傲农生物科技集团股份有限公司（证券代码：603363）6230000股股票，抵债价格6.8元/股；据管理人披露，限售期6个月。 3、韦唯名下位于厦门市思明区新华路65号之五503室住宅，建筑面积89.04㎡，为715.21万元重组贷款提供抵押担保。
A7: 5 | B7: 厦门 | C7: 厦门毅植生物科技有限公司 | D7: =SUM(E7:G7) -> 471.34 | E7: =579.54-110.38 -> 469.16 | F7: 1.89 | G7: 0.29 | H7: 保证人：吴有林、韦唯、漳州傲农投资有限公司、江西红土地化工有限公司 | I7: 抵债股票：福建傲农生物科技集团股份有限公司（证券代码：603363）370276股股票，抵债价格15.8元/股；据管理人披露，限售期12个月。
A8: 6 | B8: 泉州 | C8: 福建金康塑胶有限公司 | D8: =SUM(E8:G8) -> 3,947.29 | E8: 3,250.56 | F8: 662.32 | G8: 34.41 | H8: 保证人：南安市源兴塑胶制品有限公司、福建天安贸易有限公司、吴家粒、陈丽竹 抵押人：福建金康塑胶有限公司 | I8: 抵押物：福建金康塑胶有限公司拥有的位于南安市省新镇西埔村的南安市扶茂工业项目园区工业房地产一押，土地面积20683㎡，建筑面积15214.69㎡，最高额抵押金额4000万元。
A9: 7 | B9: 泉州 | C9: 南安市源兴塑胶制品有限公司 | D9: =SUM(E9:G9) -> 5,896.53 | E9: 4,896.38 | F9: 962.93 | G9: 37.21 | H9: 保证人：福建金康塑胶有限公司、福建天安贸易有限公司、吴家勇、黄家治、吴家粒、陈丽竹 抵押人：福建金康塑胶有限公司、南安市美林源兴食品包装袋厂 | I9: 抵押物1：南安市美林源兴食品包装袋厂拥有的位于南安市省新镇省新村库内1-6幢工业房地产，土地面积5348㎡，建筑面积16346.02㎡，最高额抵押金额1954.27万元； 抵押物2：福建金康塑胶有限公司拥有的位于南安市省新镇西埔村的南安市扶茂工业项目园区工业房地产二押，土地面积20683㎡，建筑面积15214.69㎡，最高额抵押金额5000万元。
A10: 8 | B10: 泉州 | C10: 福建宏远集团有限公司 | D10: =SUM(E10:G10) -> 3,991.62 | E10: 3,285.00 | F10: 685.17 | G10: 21.45 | H10: 保证人：宏远纺织科技（泉州）有限公司、傲丝生态（中国）有限公司、洪朝阳 | I10: 无
A11: 9 | B11: 泉州 | C11: 晋江市合兴服装织造有限公司 | D11: =SUM(E11:G11) -> 3243.545271 | E11: 2,526.00 | F11: 694.12 | G11: 23.43 | H11: 保证人：泉州波里顿服饰织造有限公司、施天补、庄素文、施钜诚 | I11: 抵押物：晋江市合兴服装织造有限公司自有的位于晋江市深沪镇浔光村63号1幢2幢厂房及土地的工业房地产，土地面积15571㎡，建筑面积8220.46㎡，最高额抵押金额1793.09万元。
A12: 10 | B12: 泉州 | C12: 福建省神通能源投资有限公司 | D12: =SUM(E12:G12) -> 893.2653496 | E12: 705.00 | F12: 181.85 | G12: 6.42 | H12: 保证人：泉州波里顿服饰织造有限公司、晋江市合兴服装织造有限公司、施天补、庄素文、施钜诚 | I12: 无
A13: 11 | B13: 泉州 | C13: 晋江鸿帆鞋业有限公司 | D13: =SUM(E13:G13) -> 76.54 | E13: 62.71 | F13: 13.69 | G13: 0.15 | H13: 保证人：王太岗、李雪峰 | I13: 无
A14: 12 | B14: 泉州 | C14: 泉州逢时贸易有限公司 | D14: =SUM(E14:G14) -> 211.27 | E14: =199.969829-19.07 -> 180.90 | F14: 30.18 | G14: 0.19 | H14: 保证人：许美满、杨建伟 | I14: 无
A15: 13 | B15: 福州 | C15: 福建省福州市立峰纺织有限公司 | D15: =SUM(E15:G15) -> 6670.347832 | E15: =5198.04-172.29-25.61 -> 5,000.14 | F15: 1,664.87 | G15: 5.34 | H15: 保证人：福建力特隆纺织印染有限公司、周春燕、许美媄、周凯翔 抵押人：九江力丰实业有限公司 | I15: 抵押物1：九江力丰实业有限公司所有的位于江西省九江市十里大道555号力丰·丽景天成10栋的住宅23套，建筑面积合计为939.09㎡提供最高额抵押。 抵押物2：九江力丰实业有限公司所有的位于江西省九江市十里大道555号力丰·丽景天成10栋的商业2套，建筑面积合计为962.44㎡提供最高额抵押。 上述抵押物合计最高额抵押金额为2458万元。
A16: 14 | B16: 福州 | C16: 福州捆先贸易有限公司 | D16: =SUM(E16:G16) -> 213.56 | E16: 206.04 | F16: 5.18 | G16: 2.34 | H16: 抵押人：林辉 | I16: 抵押物：林辉所有的位于福州市仓山区金城湾新榕佳园（金城湾）29#楼1603单元，建筑面积118.76㎡，最高抵押金额301万元。
A17: 15 | B17: 厦门 | C17: 厦门中坤生物科技有限公司 | D17: =SUM(E17:G17) -> 4898.56 | E17: 3648.87 | F17: 1,249.69 | G17: 0.00 | H17: 保证人：厦门中坤化学有限公司、中怡国际集团有限公司 | I17: 无
A18: 16 | B18: 厦门 | C18: 厦门闽灿实业有限公司 | D18: =SUM(E18:G18) -> 421.6595487 | E18: 389.96 | F18: 31.50 | G18: 0.20 | H18: 保证人：王金顶、陈雅红 | I18: 无
A19: 17 | B19: 泉州 | C19: 福建省惠五建设工程有限公司 | D19: =SUM(E19:G19) -> 4689.70 | E19: 3,328.00 | F19: 1,338.94 | G19: 22.76 | H19: 保证人：泉州市亿民建设发展有限公司、福建省闽楚建设工程有限公司、张佳伟、曾翠蓉 | I19: 无
A20: 18 | B20: 福州 | C20: 福州优优特科技有限公司 | D20: 1112.72 | E20: 1,000.00 | F20: 107.37 | G20: 5.35 | H20: 保证人：童楚捷、李雨坤、江俊杰、童梦楚、福建鎏泽再生资源回收有限公司 抵押人：李雨坤 | I20: 抵押物1：李雨坤所有的位于厦门市集美区珩山一里1号301-316单元共计16套SOHO，总建筑面积为752.86㎡. 抵押物2：李雨坤所有的位于厦门市集美区珩山一里2号301-307单元、321-329单元及1号331-332单元共计18套SOHO，总建筑面积为860.32㎡。 上述抵押物合计最高额抵押金额为3952万元。
A21: 19 | B21: 福州 | C21: 广为通讯技术(福建)有限公司 | D21: 609.53 | E21: 409.00 | F21: 197.20 | G21: 3.33 | H21: 保证人：福建千里飞舟文化传播有限公司、福州沙逊贸易有限公司、范飞跃、吴京军 抵押人：詹秀凝、广为通讯技术(福建)有限公司 | I21: 抵押物1：詹秀凝所有的位于福州市鼓楼区五凤街道梅峰路128号1#楼202单元，建筑面积88.13㎡，土地性质为划拨用地，最高额抵押金额153.72万元。 抵押物2：广为通讯技术(福建)有限公司名下车辆，最高额抵押金额41万元。
A22: 20 | B22: 南平 | C22: 邵武市美菰林卫生用品有限公司 | D22: 553.71 | E22: 424.82 | F22: 128.18 | G22: 0.71 | H22: 保证人：吴燕斌、阙红玉、吴敏、郭丽、福建美菰林生物科技有限公司 抵押人：吴燕斌 | I22: 抵押物：吴燕斌所有的位于邵武市猴子山开发区1至5层住宅房产，建筑面积1842.53㎡，土地面积752.4㎡，最高额抵押金额669万元。
A23: 21 | B23: 南平 | C23: 福建省南平康虹商贸有限公司 | D23: 1226.95 | E23: 996.70 | F23: 228.99 | G23: 1.26 | H23: 保证人：瞿康福、王爱琴、林金泉、朱亚青、官成福、孙桂花、陈如峰、王秋琴 抵押人：福建省南平康虹商贸有限公司 | I23: 抵押物：福建省南平康虹商贸有限公司所有的位于福建省南平市延平区黄墩小作村土地公垄头1-8层工业房产，建筑面积11682.7㎡，土地面积11509.8㎡，最高额抵押金额1892万元。
A24: 22 | B24: 南平 | C24: 福建省建瓯市闽众汽车有限公司 | D24: 659.81 | E24: 619.88 | F24: 37.19 | G24: 2.75 | H24: 保证人：刘小霖、黄丽、福建省建瓯市中辰汽车贸易有限公司、福建省元辰汽车有限公司 抵押人：刘小霖 | I24: 抵押物：刘小霖所有的位于建瓯市新区54-58-2-8-1、-2地块（瓯宁路200号）1-5层商住房产，建筑面积860.4㎡，土地面积190.4㎡，最高额抵押金额550万元。
A25: 23 | B25: 南平 | C25: 福建省建阳武夷味精有限公司 | D25: 971.49 | E25: 687.00 | F25: 283.35 | G25: 1.14 | H25: 保证人：李友明 抵押人：福建省建阳武夷味精有限公司 | I25: 抵押物：福建省建阳武夷味精有限公司所有的位于南平市建阳区童游街道办事处水东工业路201号工业房产，建筑面积5662.79㎡，土地面积36741.2㎡，最高额抵押金额1292万元。
A26: 24 | B26: 南平 | C26: 福建海川药业科技发展有限公司 | D26: 2189.78 | E26: 1,785.00 | F26: 403.18 | G26: 1.60 | H26: 保证人：福建通浩贸易有限公司、蔡正望（ZHENGWANGCAI）、金琼 抵押人：福建南平同春药业有限公司、福建兆农实业发展有限公司、福建海川药业科技发展有限公司 | I26: 抵押物1：福建南平同春药业有限公司所有的位于南平市西芹镇坂后海川路8号1-3层、南平市西芹镇坂后海川路8号1-5层工业房产，土地面积14890.41㎡，建筑面积7577.14㎡，最高额抵押金额820万元。 抵押物2：南平市延平区大横镇龙山路26号、27号工业房地产，福建兆农实业发展有限公司所有的位于26号土地面积20000㎡，建筑面积3331.9㎡，最高额抵押金额1400万元；福建海川药业科技发展有限公司所有的位于27号土地面积35143.25㎡，建筑面积4997.85㎡，最高额抵押金额2200万元；合计土地面积55143.25㎡，建筑面积8329.75㎡。
A27: 25 | B27: 南平 | C27: 福建省南平市华林路桥劳务有限公司 | D27: 117.36 | E27: 101.13 | F27: 15.97 | G27: 0.26 | H27: 保证人：林林武、林爱萍 抵押人：林林武、林爱萍 | I27: 抵押物：林林武、林爱萍所有的位于南平市延平区南福路35号（亿发建材装璜材料市场）4幢205、206、307、308号四间商业用房，合计建筑面积352.06㎡，最高额抵押金额240万元。
A28: 26 | B28: 南平 | C28: 福建福宏商贸集团有限公司 | D28: 1090.71 | E28: 980.00 | F28: 109.50 | G28: 1.21 | H28: 保证人：杨仁富、黄美珠 抵押人：福建省建瓯市福源宏贸易有限公司 | I28: 抵押物1：福建省建瓯市福源宏贸易有限公司所有的位于南平市建阳区中山路449号（胜德文化城12-2内店）的商业房产，建筑面积802.77㎡。 抵押物2：福建省建瓯市福源宏贸易有限公司所有的位于南平市建阳区中山路88号701室的住宅，建筑面积168.01㎡。 上述抵押物合计最高额抵押金额为2064万元，上述抵押物一押。
A29: 27 | B29: 南平 | C29: 福建省建瓯市福宏闽光贸易有限公司 | D29: 350.92 | E29: 300.00 | F29: 46.29 | G29: 4.63 | H29: 保证人：杨仁富、黄美珠、滕增荣 抵押人：福建省建瓯市福源宏贸易有限公司 | I29: 抵押物1：福建省建瓯市福源宏贸易有限公司所有的位于南平市建阳区中山路449号（胜德文化城12-2内店）的商业房产，建筑面积802.77㎡。 抵押物2：福建省建瓯市福源宏贸易有限公司所有的位于南平市建阳区中山路88号701室的住宅，建筑面积168.01㎡。 上述抵押物合计最高额抵押金额为350万元，上述抵押物二押。
A30: 28 | B30: 南平 | C30: 福建省建瓯闽宏钢铁贸易有限公司 | D30: 347.07 | E30: 300.00 | F30: 46.58 | G30: 0.49 | H30: 保证人：杨仁富、黄美珠、李一麟、甘烨敏 抵押人：福建省建瓯市福源宏贸易有限公司 | I30: 抵押物1：福建省建瓯市福源宏贸易有限公司所有的位于南平市建阳区中山路449号（胜德文化城12-2内店）的商业房产，建筑面积802.77㎡。 抵押物2：福建省建瓯市福源宏贸易有限公司所有的位于南平市建阳区中山路88号701室的住宅，建筑面积168.01㎡。 上述抵押物合计最高额抵押金额为350万元，上述抵押物三押。
A31: 29 | B31: 南平 | C31: 福建福宏物流有限公司 | D31: 335.54 | E31: 300.00 | F31: 35.06 | G31: 0.48 | H31: 保证人：杨仁富、黄美珠、福建福宏商贸集团有限公司 抵押人：福建省建瓯市福源宏贸易有限公司 | I31: 抵押物1：福建省建瓯市福源宏贸易有限公司所有的位于南平市建阳区中山路449号（胜德文化城12-2内店）的商业房产，建筑面积802.77㎡。 抵押物2：福建省建瓯市福源宏贸易有限公司所有的位于南平市建阳区中山路88号701室的住宅，建筑面积168.01㎡。 上述抵押物合计最高额抵押金额为350万元，上述抵押物四押。
A32: 30 | B32: 南平 | C32: 南平市丰源木业有限公司 | D32: 819.63 | E32: 648.75 | F32: 169.90 | G32: 0.98 | H32: 保证人：傅发茂、曹桂凤、傅克功、陈祥玉、傅克成、丁秀萍 抵押人：南平市丰源木业有限公司 | I32: 抵押物：南平市丰源木业有限公司所有的位于南平市延平区安丰村牛栏坑工业房地产的工业房产，建筑面积4584.86㎡，土地面积6674.24㎡，最高额抵押金额933.2万元。
A33: 31 | B33: 龙岩 | C33: 龙岩市连城品品米业有限公司 | D33: 333.93 | E33: 277.00 | F33: 54.43 | G33: 2.50 | H33: 保证人：徐品品、黄翠云、郑有强、徐清花 抵押人：龙岩市连城品品米业有限公司 | I33: 抵押物：龙岩市连城品品米业有限公司所有的位于连城县北团镇孙台村无祀台的工业房地产，建筑面积3186.72㎡，土地面积11480.62㎡，最高额抵押金额707.29万元。
A34: 32 | B34: 龙岩 | C34: 连城县瑞仁通用机械有限公司 | D34: 283.48 | E34: 200.87 | F34: 82.61 | G34: 0.00 | H34: 保证人：江开仁、林才云、罗雪云 抵押人：连城县瑞仁通用机械有限公司 | I34: 抵押物1：连城县瑞仁通用机械有限公司所有的位于连城县朋口镇朋城村工业园区路9号工业房地产，建筑面积2575.52平㎡，土地面积8209.5㎡ 抵押物2：连城县瑞仁通用机械有限公司所有的位于连城县朋口工业园区的工业用地，土地面积6879.18㎡，最高额抵押金额707.29万元。 上述抵押物合计最高额抵押金额为595.73万元。
A35: 33 | B35: 龙岩 | C35: 龙岩美食六哥电子商务有限公司 | D35: 100.12 | E35: 90.00 | F35: 10.12 | G35: 0.00 | H35: 保证人：蓝永建、余雪芳 抵押人：蓝永建 | I35: 抵押物：蓝永建所有的位于龙岩市新罗区东肖镇龙腾南路10号（中瑞尚城（限价商品房））2幢1412住宅及R105号人防车位，住宅面积120.4㎡，车位面积37.09㎡，最高额抵押金额131.8万元。
A36: 34 | B36: 龙岩 | C36: 福建省汉唐农业发展有限公司 | D36: 560.24 | E36: 457.00 | F36: 103.24 | G36: 0.00 | H36: 保证人：庹明群、福建东略贸易集团有限公司抵押人：庹明群 | I36: 抵押物：庹明群所有的位于龙岩市新罗区西城西安侨民路202号（西安安置小区）4幢601住宅及40号附属杂物间；龙岩市新罗区西城西安侨民路202号（西安安置小区）4幢603住宅及25号附属杂物间；龙岩市新罗区西城西安侨民路202号（西安安置小区）4幢604住宅及20号附属杂物间；龙岩市新罗区西城西安侨民路202号（西安安置小区）4幢607住宅及03号附属杂物间。601建筑面积：232.03㎡，603建筑面积：190.85㎡，604建筑面积：186.41㎡，607建筑面积:191.77㎡，40号附属杂物间建筑面积：15.28㎡，25号附属杂物间建筑面积：13.02㎡，03号附属杂物间建筑面积：14.47㎡，20号附属杂物间建筑面积：14.47㎡。 上述抵押物合计最高额抵押金额为653.6万元。
A37: 35 | B37: 龙岩 | C37: 龙岩市恒达工程有限公司 | D37: 882.20 | E37: 831.17 | F37: 51.03 | G37: 0.00 | H37: 保证人：谢贵华、谢汝彬、蒋八连、刘美金 抵押人：龙岩市恒达工程有限公司 | I37: 抵押物：龙岩市恒达工程有限公司所有的位于龙岩市新罗区南城小溪路3号2层及-1层地下层，-1层建筑面积2752.66㎡，土地面积543.7㎡（城镇住宅用地），2层建筑面积2536.05㎡，土地面积500.9㎡（商务金融用地），最高额抵押金额2944.26万元。
A38: 36 | B38: 龙岩 | C38: 龙岩市新罗区华品建筑劳务有限公司 | D38: 222.26 | E38: 197.93 | F38: 24.33 | G38: 0.00 | H38: 保证人：肖忠品、林生梅 | I38: 无
A39: 合计 | D39: =SUM(D3:D38) -> 87,441.43 | E39: =SUM(E3:E38) -> 68,022.91 | F39: =SUM(F3:F38) -> 19,236.78 | G39: =SUM(G3:G38) -> 181.75 | H39: / | I39: /
A40: 备注：上述债权金额可能存在计算误差，债务人和担保人应清偿的本金、利息、罚息、迟延履行金及代垫费用等，按借款合同、担保合同的有关约定及相关法律、法规、生效法律文书等计算为准。
